Cogmind - Beta 13 *** ADVENTURER MODE // 2024.04.03 @ 13:38:50 Player: Ellie Result: Destroyed by YI-UF0 with YI-UF0's Doublenader Performance ------------- Evolutions (0) 0 Regions Visited (2) 400 Robots Destroyed (2) 10 Value Destroyed (81) 81 Prototype IDs (0) 0 Alien Tech Used (0) 0 Bonus (0) 0 TOTAL SCORE: 491 Bonus ------- None Cogmind --------- Core Integrity 0/250 Matter 255/300 Energy 99/100 System Corruption 3% Temperature Cool (0) Movement Core (250) Ox4 Location -10/Mines Parts ------- > --- POWER (1) -------- (None) > --- PROPULSION (2) --- (None) > --- UTILITY (2) ------ Small Storage Unit Medium Storage Unit > --- WEAPON (2) ------- (None) > --- INVENTORY (10) --- Aluminum Leg Aluminum Leg Improved Heat Sink Peak State ------------ > --- POWER ------------ Ion Engine > --- PROPULSION ------- Aluminum Leg Aluminum Leg > --- UTILITY ---------- Small Storage Unit Medium Storage Unit > --- WEAPON ----------- Assault Rifle Light Assault Rifle > --- INVENTORY -------- Ion Engine Light Treads Light Treads Aluminum Leg Aluminum Leg Improved Heat Sink Assault Rifle Grenade Launcher [Rating: 8] Favorites ----------- Power Ion Engine Engine Ion Engine Propulsion Aluminum Leg Treads Light Treads Leg Aluminum Leg Utility Small Storage Unit Storage Small Storage Unit Weapon Assault Rifle Ballistic Gun Assault Rifle Launcher Grenade Launcher Build | -11 -10 -10 ------- Run | Yrd Mat Min Slots Evolved . | . . . Power . | . . . Propulsion . | . . . Utility . | . . . Weapon . | . . . Parts Attached 13 | 4 4 5 Power 2 | 1 . 1 Engine 2 | 1 . 1 Core . | . . . Reactor . | . . . Propulsion 4 | 2 . 2 Treads 2 | . . 2 Leg 2 | 2 . . Wheel . | . . . Hover . | . . . Flight . | . . . Utility 2 | 1 1 . Device . | . . . Storage 2 | 1 1 . Processor . | . . . Hackware . | . . . Protection . | . . . Artifact . | . . . Weapon 5 | . 3 2 Energy Gun . | . . . Energy Cannon . | . . . Ballistic Gun 4 | . 3 1 Ballistic Cannon . | . . . Launcher 1 | . . 1 Special Weapon . | . . . Impact Weapon . | . . . Slashing Weapon . | . . . Piercing Weapon . | . . . Special Melee Weapon . | . . . Unidentified Prototypes . | . . . Parts Lost 10 | . . 10 Power 2 | . . 2 Propulsion 4 | . . 4 Utility . | . . . Weapon 4 | . . 4 Highest Loss Streak 6 | . . 6 To Critical Strikes . | . . . Average Slot Usage (%) 72 | . 61 93 Engine 13 | . 14 12 Treads 1 | . . 5 Leg 26 | . 28 22 Storage 19 | . 15 28 Ballistic Gun 9 | . 2 24 Naked Turns . | . . . Heaviest Build 23 | 10 23 23 Greatest Support 40 | 20 20 40 Greatest Overweight (x) 6 | . 1 6 Average Overweight (x) . | . . . Largest Inventory Capacity 10 | 8 10 10 Average Capacity 8 | 7 8 10 Most Carried 8 | 6 7 8 Average Carried 5 | 3 5 6 Final Capacity 10 | 8 10 10 Final Carried 6 | 6 4 3 Class Distribution -------------------- 100% | Mutant Dominant Class ---------------- Mutant | -10/Materials Mutant | -10/Mines Resources | -11 -10 -10 ----------- Run | Yrd Mat Min Matter Collected 368 | 218 . 150 Remotely . | . . . Salvage Created 165 | . . 165 Parts 6 | . . 6 Haulers Intercepted . | . . . Recyclers Shooed . | . . . Parts Field Recycled . | . . . Retrieved Matter . | . . . Parts Self-Destructed . | . . . Prevented . | . . . Kills | -11 -10 -10 ------- Run | Yrd Mat Min Combat Hostiles Destroyed 14 | . . 14 Guns 6 | . . 6 AOE 8 | . . 8 Classes Destroyed 2 | . . 2 Grunt 2 | . . 2 Assembled 12 | . . 12 Best Kill Streak 12 | . . 12 Combat Bots Only 12 | . . 12 Max Kills in Single Turn 4 | . . 4 Gunslinging . | . . . Exploded 4 | . . 4 Melee . | . . . Uniques/NPCs Destroyed . | . . . Combat | -11 -10 -10 -------- Run | Yrd Mat Min Hostile Shots Fired 131 | . . 131 Missed 48 | . . 48 Damage Taken 1319 | . . 1319 Core 274 | . . 274 Absorbed by Shields . | . . . Ignored by Resistances 377 | . . 377 Core Remaining (%) 100 | 100 . . Volleys Fired 32 | . . 32 Largest 2 | . . 2 Hottest 40 | . . 40 Shots Fired 36 | . . 36 Gun 33 | . . 33 Cannon . | . . . Launcher 3 | . . 3 Special . | . . . Kinetic 33 | . . 33 Thermal . | . . . Explosive 3 | . . 3 Electromagnetic . | . . . Robot Hit Streak 9 | . . 9 Robot Miss Streak 2 | . . 2 Penetration Max . | . . . Secondary Targets 1 | . . 1 Max Gunslinging Chain 1 | . . 1 Shots Hit Robots 26 | . . 26 Core Hits 25 | . . 25 Critical Kills 1 | . . 1 Critical Parts Destroyed . | . . . Critical Strikes 1 | . . 1 Destroy 1 | . . 1 Melee Attacks . | . . . Impact . | . . . Slashing . | . . . Piercing . | . . . Sneak Attacks . | . . . Combat Hostiles . | . . . Follow-up Attacks . | . . . Damage Inflicted 870 | . . 870 Guns 314 | . . 314 Cannons . | . . . Explosions 556 | . . 556 Melee . | . . . Ramming . | . . . Kinetic 314 | . . 314 Thermal . | . . . Explosive 556 | . . 556 Electromagnetic . | . . . Impact . | . . . Slashing . | . . . Piercing . | . . . Highest Corruption 3 | . . 3 Average Corruption 3 | . . 3 Corruption Purged . | . . . Corruption Blocked . | . . . Effects 1 | . . 1 Message Errors 1 | . . 1 Overload Shots . | . . . Overflow Damage 27 | . . 27 Projectiles . | . . . Explosions 27 | . . 27 Melee . | . . . Knockbacks . | . . . Impact . | . . . Kinetic . | . . . Secondary . | . . . Self-Inflicted Damage 55 | . . 55 Shots 3 | . . 3 Rammed . | . . . Targets Rammed . | . . . Kicked . | . . . Crushed . | . . . Highest Temperature 30 | . . 30 Average Temperature 16 | . . 16 Received Heat Transfer 214 | . . 214 Siege Activations . | . . . Robots Corrupted . | . . . Combat Hostiles . | . . . Parts Fried . | . . . Impact Corruptions . | . . . Robots Melted . | . . . Combat Hostiles . | . . . Parts Melted . | . . . Heat Transferred . | . . . Parts Sabotaged . | . . . Parts Stolen . | . . . Parts Stripped . | . . . Power Chain Reactions . | . . . Alert | -11 -10 -10 ------- Run | Yrd Mat Min Peak Influence 65 | . 4 65 Initial . | . . . Average 18 | . 1 55 Maximum Alert Level . | . . . Low Security (%) 100 | 100 100 100 Level 1 . | . . . Level 2 . | . . . Level 3 . | . . . Level 4 . | . . . Level 5 . | . . . High Security . | . . . Max Security . | . . . Squads Dispatched 2 | . 2 . Investigation 2 | . 2 . Extermination . | . . . Reinforcement . | . . . Assault . | . . . Garrison . | . . . Intercept . | . . . Searches Triggered . | . . . Construction Impeded . | . . . Haulers Reinforced . | . . . Active Scanning Responses . | . . . Cargo Convoy Interrupts . | . . . Stealth | -11 -10 -10 --------- Run | Yrd Mat Min Distress Signals . | . . . Communications Jammed . | . . . Distress Signals . | . . . Times Spotted 17 | . . 17 Peak Tracking Total 13 | . 2 13 Tactical Retreats 1 | . . 1 Traps | -11 -10 -10 ------- Run | Yrd Mat Min Traps Triggered 1 | . 1 . Indirectly . | . . . Trap Hack Attempts . | . . . Triggered . | . . . Disarmed . | . . . Reprogrammed . | . . . Reused . | . . . Traps Extracted . | . . . Installed . | . . . Triggered . | . . . Machines | -11 -10 -10 ---------- Run | Yrd Mat Min Machines Disabled . | . . . Max in Single Turn . | . . . Machines Repaired . | . . . Machines Dismantled . | . . . Machines Sabotaged . | . . . Overloaded Fab Kills . | . . . Hacking | -11 -10 -10 --------- Run | Yrd Mat Min Machines Accessed 2 | . 2 . Terminals 2 | . 2 . Fabricators . | . . . Repair Stations . | . . . Recycling Units . | . . . Scanalyzers . | . . . Garrison Access . | . . . Total Hacks 9 | . 9 . Successful 4 | . 4 . Failed 5 | . 5 . Catastrophic 1 | . 1 . Database Lockouts . | . . . Manual . | . . . Terminals 9 | . 9 . Fabricators . | . . . Repair Stations . | . . . Recycling Units . | . . . Scanalyzers . | . . . Garrison Access . | . . . Terminal Hacks 4 | . 4 . Record 4 | . 4 . Fabricator Hacks . | . . . Repair Station Hacks . | . . . Recycling Unit Hacks . | . . . Scanalyzer . | . . . Garrison Access Hacks . | . . . Unauthorized Hacks . | . . . Terminals . | . . . Fabricators . | . . . Repair Stations . | . . . Recycling Units . | . . . Scanalyzers . | . . . Garrison Access . | . . . Data Cores Recovered . | . . . Used . | . . . Hacking Detections 2 | . 2 . Full Trace Events 1 | . 1 . Feedback Events . | . . . Feedback Blocked . | . . . Robot Schematics Acquired . | . . . Robots Built . | . . . Authchips . | . . . Time . | . . . Total Robot Build Rating . | . . . Part Schematics Acquired . | . . . Parts Built . | . . . Authchips . | . . . Time . | . . . Total Part Build Rating . | . . . Parts Repaired . | . . . Time . | . . . Parts Recycled . | . . . Recycled Matter . | . . . Retrieved Matter . | . . . Retrieved Components . | . . . Parts Scanalyzed . | . . . Part Schematics Acquired . | . . . Parts Damaged . | . . . Bothacking | -11 -10 -10 ------------ Run | Yrd Mat Min Used RIF Installer . | . . . Robots Hacked . | . . . Non-combat . | . . . Combat . | . . . Robot Hacks Applied . | . . . Relay Couplers Released . | . . . Fabnet Peak Effective % . | . . . Robots Rewired . | . . . Allies Hacked . | . . . Hacks Repelled . | . . . Allies | -11 -10 -10 -------- Run | Yrd Mat Min Total Allies . | . . . Largest Group . | . . . Highest-Rated Group . | . . . Highest-Rated Ally . | . . . Total Orders . | . . . Ally Attacks . | . . . Total Damage . | . . . Kills . | . . . Allies Corrupted . | . . . Allies Melted . | . . . Intel | -11 -10 -10 ------- Run | Yrd Mat Min Robot Analysis Total . | . . . Derelict Logs Recovered . | . . . Drone Launches . | . . . Drone Recoveries . | . . . Exploration | -11 -10 -10 ------------- Run | Yrd Mat Min Turns Passed 1275 | 114 767 394 Spaces Moved 404 | 75 159 170 Core 8 | 5 . 3 Treads 13 | . . 13 Legs 383 | 70 159 154 Wheels . | . . . Hover . | . . . Flight . | . . . Fastest Speed 50 | 50 120 120 Average Speed 153 | 115 135 188 Slowest Speed 350 | 120 190 350 Overloaded Moves . | . . . Propulsion Burnouts . | . . . Robots Hopped . | . . . Cave-ins Triggered . | . . . Exploration Rate (%) 24 | 5 24 45 Regions Visited 2 Branch Regions 1 Pre-discovered Areas . | . . . Known Exits Taken . | . . . Unknown Exits Taken 2 | 1 1 . Scrap Searched . | . . . Spaces Dug . | . . . Terrain Destroyed 20 | . . 20 Melee . | . . . Projectile . | . . . AOE 20 | . . 20 Terrain Rammed . | . . . Walls Destroyed . | . . . Machines Disabled . | . . . Actions | -11 -10 -10 --------- Run | Yrd Mat Min Total 1023 | 102 710 211 Wait 561 | 14 547 . Move 402 | 74 158 170 Hop . | . . . Pick Up 15 | 10 1 4 Fast Attach . | . . . Attach 12 | 4 3 5 Detach . | . . . Swap 1 | . 1 . Drop . | . . . Fire 32 | . . 32 Melee . | . . . Ram . | . . . Kick . | . . . Crush . | . . . Escape Stasis . | . . . Rewire . | . . . Trap . | . . . Miscellaneous . | . . . Route ------- -11/Scrapyard -10/Materials -10/Mines History --------- Turn | Location | Event 5 | -11/Scrapyard | Discovered new exit (range 16) 115 | -11/Scrapyard | Entered Materials 306 | -10/Materials | Build established: Mutant 817 | -10/Materials | Discovered new exit (range 16) 882 | -10/Materials | Entered Mines 1023 | -10/Mines | YI-UF0 nonchalantly dropped a Grenade Launcher on the ground 1159 | -10/Mines | Assembled infested the area 1201 | -10/Mines | Core integrity fell below 50% 1224 | -10/Mines | Lost 6 parts (1p2n3w) 1261 | -10/Mines | Destroyed 12 combat bots 1267 | -10/Mines | Core integrity fell below 20% 1276 | -10/Mines | Destroyed by YI-UF0 with YI-UF0's Doublenader Last Messages --------------- The unstable cave ceiling collapses. F08/I6S|QL9QRTA77&V4KUL4J73SX as-26618 destroyed. The unstable cave ceiling collapses. as-03976 destroyed. Acquired 3 matter. Acquired 9 matter. Acquired 19 matter. Acquired 20 matter. Acquired 19 matter. Acquired 2 matter. The unstable cave ceiling collapses. Lgt. Treads destroyed. The unstable cave ceiling collapses. Lgt. Treads destroyed. The unstable cave ceiling collapses. Assault Rifle destroyed. The unstable cave ceiling collapses. Ion Engine destroyed. YI-UF0 mumbles something. Map ----- +----------------------------------------------------+ | ?????????????????????# #????????????????????????? | | ?????????????????????# #????????????????????????? | | ???????############### #????????????????????????? | | ???????# #????????????????????????? | | ??###??# ############# #????????????????????????? | | ?? #??# #???????????# ??????????????????????? | | ??# #??# #??????????? ???????????????????? | | ??# #??# #??????????? ?????????????????? | | ??# #### #??????????? ## ???????????????? | | ### ## ##?????????? ##?? ???????????????? | | ##???????? ##?? ? ##??????????????? | | #????????###?? # ?? ##???????????????? | | ###### #????????????# # % ? #????????????????? | | ?????## #??????????? # ???#????????????????? | | ??????# #??????????## ?# #????????????????? | | ??????# ##?????????# ? #?????????????????? | | ?###??# #???####??# r# ? ?????????????????? | | # ##?## #?? # # ### # # # ??????????????????? | | ##?# #?? % # ??????????????????? | | #?## " #####?????????????????? | | ## "g ## #?????????????????? | | ## # """ #???????????#?????? | | ### ###? ##????????? #?????? | | # #?# #?????? ! ##??????? ##????? | | ?# ##?# #####?????# #??????? #????? | | ??###??# #?###### @ ### #????? | | ???????# ### # #????? | | ???????# ### ## # #????? | | ???????# ### ## ## #????? | | ???????# ## ## # #????? | | ???????# ## #### #?????? | | ???????# ### ##??# #???????? | | ???????# ??## ###??# ##???????? | | ???????# ???####????# #????????? | | ??????? ???????????# ## # # ##????????? | | ???????# ???????????## #### ### ####?????????? | | ???????? ????????????## #???####?###????????????? | | ???????? ????????????# ???????????????????????? | | ???????? ????????????# #???????????????????????? | | ?????????????????????## #???????????????????????? | | ?????????????????????? #???????????????????????? | | ?????????????????????? #???????????????????????? | | ?????????????????????#####???????????????????????? | | ?????????????????????????????????????????????????? | | ?????????????????????????????????????????????????? | | ?????????????????????????????????????????????????? | | ?????????????????????????????????????????????????? | | ?????????????????????????????????????????????????? | | | | | +----------------------------------------------------+ Best States ------------- Heat Dissipation 25 Energy Generation 10 Energy Capacity 250 Matter Stores 300 Matter Capacity 300 Sight Range 16 Terrain Scan Density 10 Resistance: KI 20 Resistance: TH 20 Resistance: EX 20 Resistance: EM 20 Resistance: I 20 Resistance: S 20 Resistance: P 20 Evasion (%) 55 Recoil Reduction 2 Offensive Hacking 10 Item Schematics ----------------- None Robot Schematics ------------------ None Fabricated ------------ Nothing Alien Tech Used ----------------- None Achievements -------------- None Challenges ------------ None Game ------ Seed TransmissionTargetingMallet Manual? 0 Play Time 00:12:07 Cumulative 1.9 hours Start 2024.04.03 @ 13:23:07 End 2024.04.03 @ 13:38:50 Sessions 1 Manual Loads 0 Difficulty Adventurer Special Mode None Game No. 4 Rogue 0 Adventurer 4 Explorer 0 Win Type - Total 0 Types 0/0/0/0/0/0/0/0/0 Lore% 3 Gallery% 5 Achievement% 5 Wizard Run 0 Options --------- Layout 1 ASCII 0 Keyboard 0 Movement Mouse Keybinds 0 Fullscreen 1 Font 32/SmallcapsGlow Map View 50x35 Zoom Use 0% Tactical HUD 0 Map Filters NONE Filters NONE Steam 1 RUN: eb0ed2b7-ff08-4c9b-9fb1-6bb9a1017359